Department family,Entity,Date,Expense Type,Expense area,Supplier,Transaction number,AP Amount (�)
Department of Health,NHS Barnsley CCG,31/10/2017,Clinical&Medical-Commercial Sector,LEARNING DIFFICULTIES,ASC HEALTHCARE LTD,19394789,"56,511.30 "
Department of Health,NHS Barnsley CCG,31/10/2017,C&M-APMS Contract Value,PRC DELEGATED CO-COMMISSIONING,BARNSLEY HEALTHCARE FEDERATION,19161924,"25,311.97 "
Department of Health,NHS Barnsley CCG,31/10/2017,C&M-APMS OOH Opt Outs,PRC DELEGATED CO-COMMISSIONING,BARNSLEY HEALTHCARE FEDERATION,19161924,0.05 
Department of Health,NHS Barnsley CCG,31/10/2017,C&M-APMS Prem Actual Rent,PRC DELEGATED CO-COMMISSIONING,BARNSLEY HEALTHCARE FEDERATION,19161924,"1,310.42 "
Department of Health,NHS Barnsley CCG,31/10/2017,C&M-PMS DES TPP QRISK,PRC DELEGATED CO-COMMISSIONING,BARNSLEY HEALTHCARE FEDERATION,19161924,6.50 
Department of Health,NHS Barnsley CCG,31/10/2017,C&M-PMS Prem Actual Rent,PRC DELEGATED CO-COMMISSIONING,BARNSLEY HEALTHCARE FEDERATION,19161924,"1,310.42 "
Department of Health,NHS Barnsley CCG,31/10/2017,C&M-PMS QOF Aspiration,PRC DELEGATED CO-COMMISSIONING,BARNSLEY HEALTHCARE FEDERATION,19161924,"2,442.47 "
Department of Health,NHS Barnsley CCG,31/10/2017,C&M-APMS Contract Value,PRC DELEGATED CO-COMMISSIONING,BARNSLEY HEALTHCARE FEDERATION,19161925,"30,299.15 "
Department of Health,NHS Barnsley CCG,31/10/2017,C&M-APMS Prem Actual Rent,PRC DELEGATED CO-COMMISSIONING,BARNSLEY HEALTHCARE FEDERATION,19161925,"2,150.00 "
Department of Health,NHS Barnsley CCG,31/10/2017,C&M-APMS Prem Healthcentre Rent,PRC DELEGATED CO-COMMISSIONING,BARNSLEY HEALTHCARE FEDERATION,19161925,"7,057.88 "
Department of Health,NHS Barnsley CCG,31/10/2017,C&M-APMS Prem Rates,PRC DELEGATED CO-COMMISSIONING,BARNSLEY HEALTHCARE FEDERATION,19161925,478.00 
Department of Health,NHS Barnsley CCG,31/10/2017,C&M-PMS DES TPP QRISK,PRC DELEGATED CO-COMMISSIONING,BARNSLEY HEALTHCARE FEDERATION,19161925,97.50 
Department of Health,NHS Barnsley CCG,31/10/2017,C&M-PMS Prem Actual Rent,PRC DELEGATED CO-COMMISSIONING,BARNSLEY HEALTHCARE FEDERATION,19161925,"2,150.00 "
Department of Health,NHS Barnsley CCG,31/10/2017,C&M-PMS Prem Healthcentre Rent,PRC DELEGATED CO-COMMISSIONING,BARNSLEY HEALTHCARE FEDERATION,19161925,"6,795.48 "
Department of Health,NHS Barnsley CCG,31/10/2017,C&M-PMS QOF Aspiration,PRC DELEGATED CO-COMMISSIONING,BARNSLEY HEALTHCARE FEDERATION,19161925,"2,184.66 "
Department of Health,NHS Barnsley CCG,31/10/2017,C&M-APMS Contract Value,PRC DELEGATED CO-COMMISSIONING,BARNSLEY HEALTHCARE FEDERATION,19161926,"27,758.98 "
Department of Health,NHS Barnsley CCG,31/10/2017,C&M-APMS Prem Actual Rent,PRC DELEGATED CO-COMMISSIONING,BARNSLEY HEALTHCARE FEDERATION,19161926,"6,200.00 "
Department of Health,NHS Barnsley CCG,31/10/2017,C&M-APMS Prem Rates,PRC DELEGATED CO-COMMISSIONING,BARNSLEY HEALTHCARE FEDERATION,19161926,"1,444.00 "
Department of Health,NHS Barnsley CCG,31/10/2017,C&M-PMS DES TPP QRISK,PRC DELEGATED CO-COMMISSIONING,BARNSLEY HEALTHCARE FEDERATION,19161926,182.00 
Department of Health,NHS Barnsley CCG,31/10/2017,C&M-PMS Prem Actual Rent,PRC DELEGATED CO-COMMISSIONING,BARNSLEY HEALTHCARE FEDERATION,19161926,"6,200.00 "
Department of Health,NHS Barnsley CCG,31/10/2017,C&M-PMS QOF Aspiration,PRC DELEGATED CO-COMMISSIONING,BARNSLEY HEALTHCARE FEDERATION,19161926,"2,549.33 "
Department of Health,NHS Barnsley CCG,31/10/2017,Miscellaneous Expenditure (L9),PCTF Revenue,BARNSLEY HEALTHCARE FEDERATION,19372624,"127,632.91 "
Department of Health,NHS Barnsley CCG,31/10/2017,Clinical&Medical-Commercial Sector,OUT OF HOURS,BARNSLEY HEALTHCARE FEDERATION,19394797,"115,909.00 "
Department of Health,NHS Barnsley CCG,31/10/2017,C&M-PMS Contract Value,PRC DELEGATED CO-COMMISSIONING,BARNSLEY HEALTHCARE FEDERATION CIC (GOLDTHORPE),19161922,"39,914.35 "
Department of Health,NHS Barnsley CCG,31/10/2017,C&M-PMS DES TPP QRISK,PRC DELEGATED CO-COMMISSIONING,BARNSLEY HEALTHCARE FEDERATION CIC (GOLDTHORPE),19161922,104.00 
Department of Health,NHS Barnsley CCG,31/10/2017,C&M-PMS Prem Healthcentre Rent,PRC DELEGATED CO-COMMISSIONING,BARNSLEY HEALTHCARE FEDERATION CIC (GOLDTHORPE),19161922,"11,654.20 "
Department of Health,NHS Barnsley CCG,31/10/2017,C&M-PMS QOF Aspiration,PRC DELEGATED CO-COMMISSIONING,BARNSLEY HEALTHCARE FEDERATION CIC (GOLDTHORPE),19161922,"4,628.16 "
Department of Health,NHS Barnsley CCG,30/09/2017,Clinical&Medical-Voluntary Sector,HOSPICES,BARNSLEY HOSPICE,19024287,"397,271.52 "
Department of Health,NHS Barnsley CCG,31/10/2017,Hcare Srv Rec Fdtn Trust-CQUIN,ACUTE COMMISSIONING,BARNSLEY HOSPITAL NHS FOUNDATION TRUST,19106139,"8,678.00 "
Department of Health,NHS Barnsley CCG,31/10/2017,Hcare Srv Rec Fdtn Trust-Contract Baseline,ACUTE COMMISSIONING,BARNSLEY HOSPITAL NHS FOUNDATION TRUST,19106139,"562,297.00 "
Department of Health,NHS Barnsley CCG,31/10/2017,Hcare Srv Rec Fdtn Trust-CQUIN,ACUTE COMMISSIONING,BARNSLEY HOSPITAL NHS FOUNDATION TRUST,19120856,"208,638.00 "
Department of Health,NHS Barnsley CCG,31/10/2017,Hcare Srv Rec Fdtn Trust-Contract Baseline,ACUTE COMMISSIONING,BARNSLEY HOSPITAL NHS FOUNDATION TRUST,19120856,"11,025,785.00 "
Department of Health,NHS Barnsley CCG,31/10/2017,Cont Care- Prior Year Payments,FUNDED NURSING CARE,BARNSLEY METROPOLITAN BOROUGH COUNCIL,19394779,"601,883.93 "
Department of Health,NHS Barnsley CCG,31/10/2017,Cont Care- Prior Year Payments,FUNDED NURSING CARE,BARNSLEY METROPOLITAN BOROUGH COUNCIL,19394784,"25,000.00 "
Department of Health,NHS Barnsley CCG,31/10/2017,Cont Care- Prior Year Payments,FUNDED NURSING CARE,BARNSLEY METROPOLITAN BOROUGH COUNCIL,19394787,"301,797.00 "
Department of Health,NHS Barnsley CCG,31/10/2017,Cont Care- Prior Year Payments,FUNDED NURSING CARE,BARNSLEY METROPOLITAN BOROUGH COUNCIL,19394809,"(56,765.33)"
Department of Health,NHS Barnsley CCG,31/10/2017,Cont Care- Prior Year Payments,FUNDED NURSING CARE,BARNSLEY METROPOLITAN BOROUGH COUNCIL,19394812,"(31,848.95)"
Department of Health,NHS Barnsley CCG,31/10/2017,Clinical&Medical-Othe Public Sector,Mental Health Services - S117 Mental Health,BARNSLEY METROPOLITAN BOROUGH COUNCIL,19410632,"(41,623.33)"
Department of Health,NHS Barnsley CCG,31/10/2017,Clinical&Medical-Othe Public Sector,Mental Health Services - S117 Mental Health,BARNSLEY METROPOLITAN BOROUGH COUNCIL,19410633,"(31,392.34)"
Department of Health,NHS Barnsley CCG,31/10/2017,Clinical&Medical-Othe Public Sector,Learning Difficulties - S117,BARNSLEY METROPOLITAN BOROUGH COUNCIL,19410635,"(26,517.43)"
Department of Health,NHS Barnsley CCG,31/10/2017,Clinical&Medical-Othe Public Sector,Mental Health Services - S117 Mental Health,BARNSLEY METROPOLITAN BOROUGH COUNCIL,19410649,"(29,749.17)"
Department of Health,NHS Barnsley CCG,31/10/2017,Clinical&Medical-Othe Public Sector,Learning Difficulties - S117,BARNSLEY METROPOLITAN BOROUGH COUNCIL,19410654,"(34,641.10)"
Department of Health,NHS Barnsley CCG,31/10/2017,Clinical&Medical-Othe Public Sector,Learning Difficulties - S117,BARNSLEY METROPOLITAN BOROUGH COUNCIL,19410656,"(34,096.67)"
Department of Health,NHS Barnsley CCG,31/10/2017,Clinical&Medical-Othe Public Sector,Mental Health Services - S117 Mental Health,BARNSLEY METROPOLITAN BOROUGH COUNCIL,19410657,"(29,972.00)"
Department of Health,NHS Barnsley CCG,31/10/2017,Clinical&Medical-Othe Public Sector,Learning Difficulties - S117,BARNSLEY METROPOLITAN BOROUGH COUNCIL,19410658,"(26,535.61)"
Department of Health,NHS Barnsley CCG,31/10/2017,Clinical&Medical-Othe Public Sector,Mental Health Services - S117 Mental Health,BARNSLEY METROPOLITAN BOROUGH COUNCIL,19410659,"(26,482.66)"
Department of Health,NHS Barnsley CCG,31/10/2017,Clinical&Medical-Othe Public Sector,Mental Health Services - S117 Mental Health,BARNSLEY METROPOLITAN BOROUGH COUNCIL,19410661,"(27,603.60)"
Department of Health,NHS Barnsley CCG,31/10/2017,Clinical&Medical-Othe Public Sector,Mental Health Services - S117 Mental Health,BARNSLEY METROPOLITAN BOROUGH COUNCIL,19410662,"(30,825.79)"
Department of Health,NHS Barnsley CCG,31/10/2017,Clinical&Medical-Othe Public Sector,Mental Health Services - S117 Mental Health,BARNSLEY METROPOLITAN BOROUGH COUNCIL,19410663,"(35,306.60)"
Department of Health,NHS Barnsley CCG,31/10/2017,Clinical&Medical-Othe Public Sector,Learning Difficulties - S117,BARNSLEY METROPOLITAN BOROUGH COUNCIL,19410664,"(33,491.07)"
Department of Health,NHS Barnsley CCG,31/10/2017,Clinical&Medical-Othe Public Sector,Learning Difficulties - S117,BARNSLEY METROPOLITAN BOROUGH COUNCIL,19410666,"(35,792.57)"
Department of Health,NHS Barnsley CCG,31/10/2017,Clinical&Medical-Othe Public Sector,Mental Health Services - S117 Mental Health,BARNSLEY METROPOLITAN BOROUGH COUNCIL,19410670,"(32,812.07)"
Department of Health,NHS Barnsley CCG,31/10/2017,Clinical&Medical-Othe Public Sector,Mental Health Services - S117 Mental Health,BARNSLEY METROPOLITAN BOROUGH COUNCIL,19410672,"(42,903.64)"
Department of Health,NHS Barnsley CCG,31/10/2017,Clinical&Medical-Othe Public Sector,Mental Health Services - S117 Mental Health,BARNSLEY METROPOLITAN BOROUGH COUNCIL,19410673,"(28,883.81)"
Department of Health,NHS Barnsley CCG,31/10/2017,Clinical&Medical-Othe Public Sector,Learning Difficulties - S117,BARNSLEY METROPOLITAN BOROUGH COUNCIL,19412823,"33,312.50 "
Department of Health,NHS Barnsley CCG,31/10/2017,Clinical&Medical-Othe Public Sector,Mental Health Services - S117 Mental Health,BARNSLEY METROPOLITAN BOROUGH COUNCIL,19412824,"83,246.66 "
Department of Health,NHS Barnsley CCG,31/10/2017,Clinical&Medical-Othe Public Sector,Mental Health Services - S117 Mental Health,BARNSLEY METROPOLITAN BOROUGH COUNCIL,19412825,"44,846.20 "
Department of Health,NHS Barnsley CCG,31/10/2017,Clinical&Medical-Othe Public Sector,Learning Difficulties - S117,BARNSLEY METROPOLITAN BOROUGH COUNCIL,19412827,"42,084.48 "
Department of Health,NHS Barnsley CCG,31/10/2017,Clinical&Medical-Othe Public Sector,Learning Difficulties - S117,BARNSLEY METROPOLITAN BOROUGH COUNCIL,19412829,"38,181.31 "
Department of Health,NHS Barnsley CCG,31/10/2017,Clinical&Medical-Othe Public Sector,Mental Health Services - S117 Mental Health,BARNSLEY METROPOLITAN BOROUGH COUNCIL,19412836,"33,628.57 "
Department of Health,NHS Barnsley CCG,31/10/2017,Clinical&Medical-Othe Public Sector,Mental Health Services - S117 Mental Health,BARNSLEY METROPOLITAN BOROUGH COUNCIL,19412839,"38,762.42 "
Department of Health,NHS Barnsley CCG,31/10/2017,Clinical&Medical-Othe Public Sector,Mental Health Services - S117 Mental Health,BARNSLEY METROPOLITAN BOROUGH COUNCIL,19412841,"48,546.30 "
Department of Health,NHS Barnsley CCG,31/10/2017,Clinical&Medical-Othe Public Sector,Learning Difficulties - S117,BARNSLEY METROPOLITAN BOROUGH COUNCIL,19412844,"43,563.67 "
Department of Health,NHS Barnsley CCG,31/10/2017,Clinical&Medical-Othe Public Sector,Learning Difficulties - S117,BARNSLEY METROPOLITAN BOROUGH COUNCIL,19412846,"56,547.67 "
Department of Health,NHS Barnsley CCG,31/10/2017,Clinical&Medical-Othe Public Sector,Learning Difficulties - S117,BARNSLEY METROPOLITAN BOROUGH COUNCIL,19412850,"55,450.76 "
Department of Health,NHS Barnsley CCG,31/10/2017,Clinical&Medical-Othe Public Sector,Mental Health Services - S117 Mental Health,BARNSLEY METROPOLITAN BOROUGH COUNCIL,19412851,"53,964.71 "
Department of Health,NHS Barnsley CCG,31/10/2017,Clinical&Medical-Othe Public Sector,Learning Difficulties - S117,BARNSLEY METROPOLITAN BOROUGH COUNCIL,19412852,"40,333.80 "
Department of Health,NHS Barnsley CCG,31/10/2017,Clinical&Medical-Othe Public Sector,Mental Health Services - S117 Mental Health,BARNSLEY METROPOLITAN BOROUGH COUNCIL,19412854,"52,965.31 "
Department of Health,NHS Barnsley CCG,31/10/2017,Clinical&Medical-Othe Public Sector,Mental Health Services - S117 Mental Health,BARNSLEY METROPOLITAN BOROUGH COUNCIL,19412856,"35,157.14 "
Department of Health,NHS Barnsley CCG,31/10/2017,Clinical&Medical-Othe Public Sector,Mental Health Services - S117 Mental Health,BARNSLEY METROPOLITAN BOROUGH COUNCIL,19412857,"42,467.08 "
Department of Health,NHS Barnsley CCG,31/10/2017,Clinical&Medical-Othe Public Sector,Mental Health Services - S117 Mental Health,BARNSLEY METROPOLITAN BOROUGH COUNCIL,19412859,"48,914.29 "
Department of Health,NHS Barnsley CCG,31/10/2017,Clinical&Medical-Othe Public Sector,Mental Health Services - S117 Mental Health,BARNSLEY METROPOLITAN BOROUGH COUNCIL,19412860,"57,870.19 "
Department of Health,NHS Barnsley CCG,31/10/2017,Clinical&Medical-Othe Public Sector,Learning Difficulties - S117,BARNSLEY METROPOLITAN BOROUGH COUNCIL,19412862,"54,245.33 "
Department of Health,NHS Barnsley CCG,31/10/2017,Clinical&Medical-Othe Public Sector,Learning Difficulties - S117,BARNSLEY METROPOLITAN BOROUGH COUNCIL,19412866,"58,850.00 "
Department of Health,NHS Barnsley CCG,31/10/2017,Clinical&Medical-Othe Public Sector,Mental Health Services - S117 Mental Health,BARNSLEY METROPOLITAN BOROUGH COUNCIL,19412875,"52,888.57 "
Department of Health,NHS Barnsley CCG,31/10/2017,Clinical&Medical-Othe Public Sector,Mental Health Services - S117 Mental Health,BARNSLEY METROPOLITAN BOROUGH COUNCIL,19412876,"26,207.07 "
Department of Health,NHS Barnsley CCG,31/10/2017,Clinical&Medical-Othe Public Sector,Mental Health Services - S117 Mental Health,BARNSLEY METROPOLITAN BOROUGH COUNCIL,19412878,"85,807.27 "
Department of Health,NHS Barnsley CCG,31/10/2017,Clinical&Medical-Othe Public Sector,Mental Health Services - S117 Mental Health,BARNSLEY METROPOLITAN BOROUGH COUNCIL,19412880,"47,828.80 "
Department of Health,NHS Barnsley CCG,31/10/2017,Cont Care- Prior Year Payments,CHC AD FULL FUND PERS HLTH BUD,BARNSLEY METROPOLITAN BOROUGH COUNCIL,19413406,"29,553.66 "
Department of Health,NHS Barnsley CCG,31/10/2017,Clinical&Medical-Commercial Sector,ACUTE COMMISSIONING,BMI HEALTHCARE COLLECTIONS,19067692,"46,550.44 "
Department of Health,NHS Barnsley CCG,31/10/2017,Clinical&Medical-Commercial Sector,ACUTE COMMISSIONING,BMI HEALTHCARE COLLECTIONS,19067694,"(25,274.92)"
Department of Health,NHS Barnsley CCG,31/10/2017,Clinical&Medical-Commercial Sector,ACUTE COMMISSIONING,CLAREMONT HOSPITAL,19149904,"54,938.00 "
Department of Health,NHS Barnsley CCG,31/10/2017,Clinical&Medical-Commercial Sector,LEARNING DIFFICULTIES,DANSHELL HEALTHCARE LTD,19083632,"33,450.00 "
Department of Health,NHS Barnsley CCG,30/09/2017,Hcare Srv Rec Fdtn Trust-CQUIN,ACUTE COMMISSIONING,DONCASTER AND BASSETLAW HOSPITALS NHS FOUNDATION TRUST,18950788,"5,277.00 "
Department of Health,NHS Barnsley CCG,30/09/2017,Hcare Srv Rec Fdtn Trust-Contract Baseline,ACUTE COMMISSIONING,DONCASTER AND BASSETLAW HOSPITALS NHS FOUNDATION TRUST,18950788,"518,453.00 "
Department of Health,NHS Barnsley CCG,31/10/2017,Apprenticeship Levy Payable,BALANCE SHEET,HMRC,19256106,690.00 
Department of Health,NHS Barnsley CCG,31/10/2017,Income tax <1Yr,BALANCE SHEET,HMRC,19256106,"51,788.88 "
Department of Health,NHS Barnsley CCG,31/10/2017,Income tax <1Yr-Student Loans,BALANCE SHEET,HMRC,19256106,"1,909.00 "
Department of Health,NHS Barnsley CCG,31/10/2017,National Insurance < 1 yr-NI- ERS,BALANCE SHEET,HMRC,19256106,"40,861.80 "
Department of Health,NHS Barnsley CCG,31/10/2017,National Insurance < 1 yr-NI-EES,BALANCE SHEET,HMRC,19256106,"29,941.11 "
Department of Health,NHS Barnsley CCG,31/10/2017,Statutory Mat Pay < 1 yr,BALANCE SHEET,HMRC,19256106,"(1,404.62)"
Department of Health,NHS Barnsley CCG,31/10/2017,External Data Contracts,BUSINESS INFORMATICS,KIER BUSINESS SERVICES LTD,19191823,"14,111.00 "
Department of Health,NHS Barnsley CCG,31/10/2017,External Data Contracts,COMMISSIONING SCHEMES,KIER BUSINESS SERVICES LTD,19191823,"15,218.00 "
Department of Health,NHS Barnsley CCG,31/10/2017,Telecoms-Data lines,PRIMARY CARE IT,KIER BUSINESS SERVICES LTD,19191823,"49,324.00 "
Department of Health,NHS Barnsley CCG,31/10/2017,Hcare Srv Rec NHS Trust-CQUIN,ACUTE COMMISSIONING,LEEDS TEACHING HOSPITALS NHS TRUST,19294578,"1,892.70 "
Department of Health,NHS Barnsley CCG,31/10/2017,Hcare Srv Rec NHS Trust-Contract Baseline,ACUTE COMMISSIONING,LEEDS TEACHING HOSPITALS NHS TRUST,19294578,"88,855.50 "
Department of Health,NHS Barnsley CCG,31/10/2017,Hcare Srv Rec NHS Trust-CQUIN,ACUTE COMMISSIONING,MID YORKSHIRE HOSPITALS NHS TRUST,19148696,"2,197.00 "
Department of Health,NHS Barnsley CCG,31/10/2017,Hcare Srv Rec NHS Trust-Contract Baseline,ACUTE COMMISSIONING,MID YORKSHIRE HOSPITALS NHS TRUST,19148696,"206,053.00 "
Department of Health,NHS Barnsley CCG,31/10/2017,C&M-PMS Prem Healthcentre Rent,PRC DELEGATED CO-COMMISSIONING,NHS BARNLSEY CCG GP PRACTICE,19131976,(736.22)
Department of Health,NHS Barnsley CCG,31/10/2017,C&M-GMS DES Minor Surgery,PRC DELEGATED CO-COMMISSIONING,NHS BARNSLEY CCG GP PRACTICE,19383044,"4,858.68 "
Department of Health,NHS Barnsley CCG,31/10/2017,C&M-GMS Global Sum,PRC DELEGATED CO-COMMISSIONING,NHS BARNSLEY CCG GP PRACTICE,19383044,"78,409.42 "
Department of Health,NHS Barnsley CCG,31/10/2017,C&M-GMS Prem Healthcentre Rent,PRC DELEGATED CO-COMMISSIONING,NHS BARNSLEY CCG GP PRACTICE,19383044,"25,297.00 "
Department of Health,NHS Barnsley CCG,31/10/2017,C&M-GMS QOF Aspiration,PRC DELEGATED CO-COMMISSIONING,NHS BARNSLEY CCG GP PRACTICE,19383044,"7,839.58 "
Department of Health,NHS Barnsley CCG,31/10/2017,C&M-PMS Contract Value,PRC DELEGATED CO-COMMISSIONING,NHS BARNSLEY CCG GP PRACTICE,19140175,"48,259.80 "
Department of Health,NHS Barnsley CCG,31/10/2017,C&M-PMS Out of Hours Opt Outs,PRC DELEGATED CO-COMMISSIONING,NHS BARNSLEY CCG GP PRACTICE,19140175,199.28 
Department of Health,NHS Barnsley CCG,31/10/2017,C&M-PMS Prem Notional Rent,PRC DELEGATED CO-COMMISSIONING,NHS BARNSLEY CCG GP PRACTICE,19140175,"28,675.00 "
Department of Health,NHS Barnsley CCG,31/10/2017,C&M-PMS Prem Rates,PRC DELEGATED CO-COMMISSIONING,NHS BARNSLEY CCG GP PRACTICE,19140175,"13,090.03 "
Department of Health,NHS Barnsley CCG,31/10/2017,C&M-PMS QOF Aspiration,PRC DELEGATED CO-COMMISSIONING,NHS BARNSLEY CCG GP PRACTICE,19140175,"5,260.11 "
Department of Health,NHS Barnsley CCG,31/10/2017,C&M-PMS Contract Value,PRC DELEGATED CO-COMMISSIONING,NHS BARNSLEY CCG GP PRACTICE,19161918,"88,976.24 "
Department of Health,NHS Barnsley CCG,31/10/2017,C&M-PMS DES TPP QRISK,PRC DELEGATED CO-COMMISSIONING,NHS BARNSLEY CCG GP PRACTICE,19161918,71.50 
Department of Health,NHS Barnsley CCG,31/10/2017,C&M-PMS DES UNPLANNED ADMISSIONS,PRC DELEGATED CO-COMMISSIONING,NHS BARNSLEY CCG GP PRACTICE,19161918,"3,080.40 "
Department of Health,NHS Barnsley CCG,31/10/2017,C&M-PMS Out of Hours Opt Outs,PRC DELEGATED CO-COMMISSIONING,NHS BARNSLEY CCG GP PRACTICE,19161918,4.75 
Department of Health,NHS Barnsley CCG,31/10/2017,C&M-PMS PCO Locum Adop/Pat/Mat,PRC DELEGATED CO-COMMISSIONING,NHS BARNSLEY CCG GP PRACTICE,19161918,586.43 
Department of Health,NHS Barnsley CCG,31/10/2017,C&M-PMS Prem Healthcentre Rent,PRC DELEGATED CO-COMMISSIONING,NHS BARNSLEY CCG GP PRACTICE,19161918,"20,733.65 "
Department of Health,NHS Barnsley CCG,31/10/2017,C&M-PMS Prem Notional Rent,PRC DELEGATED CO-COMMISSIONING,NHS BARNSLEY CCG GP PRACTICE,19161918,"1,833.33 "
Department of Health,NHS Barnsley CCG,31/10/2017,C&M-PMS Prem Rates,PRC DELEGATED CO-COMMISSIONING,NHS BARNSLEY CCG GP PRACTICE,19161918,289.00 
Department of Health,NHS Barnsley CCG,31/10/2017,C&M-PMS Prem Water Rates,PRC DELEGATED CO-COMMISSIONING,NHS BARNSLEY CCG GP PRACTICE,19161918,311.66 
Department of Health,NHS Barnsley CCG,31/10/2017,C&M-PMS QOF Aspiration,PRC DELEGATED CO-COMMISSIONING,NHS BARNSLEY CCG GP PRACTICE,19161918,"10,231.70 "
Department of Health,NHS Barnsley CCG,31/10/2017,C&M-PMS Contract Value,PRC DELEGATED CO-COMMISSIONING,NHS BARNSLEY CCG GP PRACTICE,19131976,(26.94)
Department of Health,NHS Barnsley CCG,31/10/2017,C&M-PMS GP Statutory Levy,PRC DELEGATED CO-COMMISSIONING,NHS BARNSLEY CCG GP PRACTICE,19131976,(227.61)
Department of Health,NHS Barnsley CCG,31/10/2017,C&M-PMS Out of Hours Opt Outs,PRC DELEGATED CO-COMMISSIONING,NHS BARNSLEY CCG GP PRACTICE,19131976,"(2,503.44)"
Department of Health,NHS Barnsley CCG,31/10/2017,C&M-PMS Voluntary Levy,PRC DELEGATED CO-COMMISSIONING,NHS BARNSLEY CCG GP PRACTICE,19131976,(39.81)
Department of Health,NHS Barnsley CCG,31/10/2017,ME-PMS GP Pension EEs-PMS,PRC DELEGATED CO-COMMISSIONING,NHS BARNSLEY CCG GP PRACTICE,19131976,"(11,192.41)"
Department of Health,NHS Barnsley CCG,31/10/2017,ME-PMS GP Pension ERs Adjs - PMS,PRC DELEGATED CO-COMMISSIONING,NHS BARNSLEY CCG GP PRACTICE,19131976,"(11,213.64)"
Department of Health,NHS Barnsley CCG,31/10/2017,C&M-PMS Contract Value,PRC DELEGATED CO-COMMISSIONING,NHS BARNSLEY CCG GP PRACTICE,19161919,"50,635.93 "
Department of Health,NHS Barnsley CCG,31/10/2017,C&M-PMS DES TPP QRISK,PRC DELEGATED CO-COMMISSIONING,NHS BARNSLEY CCG GP PRACTICE,19161919,344.50 
Department of Health,NHS Barnsley CCG,31/10/2017,C&M-PMS Out of Hours Opt Outs,PRC DELEGATED CO-COMMISSIONING,NHS BARNSLEY CCG GP PRACTICE,19161919,1.33 
Department of Health,NHS Barnsley CCG,31/10/2017,C&M-PMS Prem Healthcentre Rent,PRC DELEGATED CO-COMMISSIONING,NHS BARNSLEY CCG GP PRACTICE,19161919,"21,557.02 "
Department of Health,NHS Barnsley CCG,31/10/2017,C&M-PMS QOF Aspiration,PRC DELEGATED CO-COMMISSIONING,NHS BARNSLEY CCG GP PRACTICE,19161919,"5,374.86 "
Department of Health,NHS Barnsley CCG,31/10/2017,ME - PMS GP Prior Year ERs,PRC DELEGATED CO-COMMISSIONING,NHS BARNSLEY CCG GP PRACTICE,19161927,"19,125.39 "
Department of Health,NHS Barnsley CCG,31/10/2017,ME-PMS GP Prior Year EEs,PRC DELEGATED CO-COMMISSIONING,NHS BARNSLEY CCG GP PRACTICE,19161927,"19,284.99 "
Department of Health,NHS Barnsley CCG,31/10/2017,C&M-GMS DES Learn Dsblty Hlth Chk,PRC DELEGATED CO-COMMISSIONING,NHS BARNSLEY CCG GP PRACTICE,19383046,140.00 
Department of Health,NHS Barnsley CCG,31/10/2017,C&M-GMS DES Minor Surgery,PRC DELEGATED CO-COMMISSIONING,NHS BARNSLEY CCG GP PRACTICE,19383046,"2,983.40 "
Department of Health,NHS Barnsley CCG,31/10/2017,C&M-GMS Global Sum,PRC DELEGATED CO-COMMISSIONING,NHS BARNSLEY CCG GP PRACTICE,19383046,"71,316.80 "
Department of Health,NHS Barnsley CCG,31/10/2017,C&M-GMS PCO Other,PRC DELEGATED CO-COMMISSIONING,NHS BARNSLEY CCG GP PRACTICE,19383046,452.60 
Department of Health,NHS Barnsley CCG,31/10/2017,C&M-GMS Prem Notional Rent,PRC DELEGATED CO-COMMISSIONING,NHS BARNSLEY CCG GP PRACTICE,19383046,"6,971.78 "
Department of Health,NHS Barnsley CCG,31/10/2017,C&M-GMS QOF Aspiration,PRC DELEGATED CO-COMMISSIONING,NHS BARNSLEY CCG GP PRACTICE,19383046,"8,873.87 "
Department of Health,NHS Barnsley CCG,31/10/2017,C&M-GMS DES Learn Dsblty Hlth Chk,PRC DELEGATED CO-COMMISSIONING,NHS BARNSLEY CCG GP PRACTICE,19407028,420.00 
Department of Health,NHS Barnsley CCG,31/10/2017,C&M-GMS DES Minor Surgery,PRC DELEGATED CO-COMMISSIONING,NHS BARNSLEY CCG GP PRACTICE,19407028,"3,324.36 "
Department of Health,NHS Barnsley CCG,31/10/2017,C&M-GMS DES TPP QRISK,PRC DELEGATED CO-COMMISSIONING,NHS BARNSLEY CCG GP PRACTICE,19407028,"1,826.50 "
Department of Health,NHS Barnsley CCG,31/10/2017,C&M-GMS Global Sum,PRC DELEGATED CO-COMMISSIONING,NHS BARNSLEY CCG GP PRACTICE,19407028,"88,575.47 "
Department of Health,NHS Barnsley CCG,31/10/2017,C&M-GMS Prem Actual Rent,PRC DELEGATED CO-COMMISSIONING,NHS BARNSLEY CCG GP PRACTICE,19407028,"4,253.50 "
Department of Health,NHS Barnsley CCG,31/10/2017,C&M-GMS Prem Healthcentre Rent,PRC DELEGATED CO-COMMISSIONING,NHS BARNSLEY CCG GP PRACTICE,19407028,"3,289.55 "
Department of Health,NHS Barnsley CCG,31/10/2017,C&M-GMS Prem Notional Rent,PRC DELEGATED CO-COMMISSIONING,NHS BARNSLEY CCG GP PRACTICE,19407028,"1,572.92 "
Department of Health,NHS Barnsley CCG,31/10/2017,C&M-GMS Prem Rates,PRC DELEGATED CO-COMMISSIONING,NHS BARNSLEY CCG GP PRACTICE,19407028,"1,209.00 "
Department of Health,NHS Barnsley CCG,31/10/2017,C&M-GMS Prem Water Rates,PRC DELEGATED CO-COMMISSIONING,NHS BARNSLEY CCG GP PRACTICE,19407028,60.55 
Department of Health,NHS Barnsley CCG,31/10/2017,C&M-GMS QOF Aspiration,PRC DELEGATED CO-COMMISSIONING,NHS BARNSLEY CCG GP PRACTICE,19407028,"8,682.82 "
Department of Health,NHS Barnsley CCG,31/10/2017,C&M-PMS GP Statutory Levy,PRC DELEGATED CO-COMMISSIONING,NHS BARNSLEY CCG GP PRACTICE,19131979,(566.18)
Department of Health,NHS Barnsley CCG,31/10/2017,C&M-PMS Out of Hours Opt Outs,PRC DELEGATED CO-COMMISSIONING,NHS BARNSLEY CCG GP PRACTICE,19131979,"(6,068.64)"
Department of Health,NHS Barnsley CCG,31/10/2017,C&M-PMS Voluntary Levy,PRC DELEGATED CO-COMMISSIONING,NHS BARNSLEY CCG GP PRACTICE,19131979,(99.03)
Department of Health,NHS Barnsley CCG,31/10/2017,ME - PMS TPS Added Years Adj EEs,PRC DELEGATED CO-COMMISSIONING,NHS BARNSLEY CCG GP PRACTICE,19131979,(610.96)
Department of Health,NHS Barnsley CCG,31/10/2017,ME-PMS GP Pension EEs-PMS,PRC DELEGATED CO-COMMISSIONING,NHS BARNSLEY CCG GP PRACTICE,19131979,"(14,610.61)"
Department of Health,NHS Barnsley CCG,31/10/2017,ME-PMS GP Pension ERs Adjs - PMS,PRC DELEGATED CO-COMMISSIONING,NHS BARNSLEY CCG GP PRACTICE,19131979,"(15,370.39)"
Department of Health,NHS Barnsley CCG,31/10/2017,C&M-PMS Contract Value,PRC DELEGATED CO-COMMISSIONING,NHS BARNSLEY CCG GP PRACTICE,19131980,"128,198.91 "
Department of Health,NHS Barnsley CCG,31/10/2017,C&M-PMS DES Learn Dsblty Hlth Chk,PRC DELEGATED CO-COMMISSIONING,NHS BARNSLEY CCG GP PRACTICE,19131980,"1,260.00 "
Department of Health,NHS Barnsley CCG,31/10/2017,C&M-PMS Funding Differential Review,PRC DELEGATED CO-COMMISSIONING,NHS BARNSLEY CCG GP PRACTICE,19131980,94.00 
Department of Health,NHS Barnsley CCG,31/10/2017,C&M-PMS PCO Locum Adop/Pat/Mat,PRC DELEGATED CO-COMMISSIONING,NHS BARNSLEY CCG GP PRACTICE,19131980,"7,464.65 "
Department of Health,NHS Barnsley CCG,31/10/2017,C&M-PMS Prem Actual Rent,PRC DELEGATED CO-COMMISSIONING,NHS BARNSLEY CCG GP PRACTICE,19131980,"24,600.00 "
Department of Health,NHS Barnsley CCG,31/10/2017,C&M-PMS Prem Notional Rent,PRC DELEGATED CO-COMMISSIONING,NHS BARNSLEY CCG GP PRACTICE,19131980,"6,333.33 "
Department of Health,NHS Barnsley CCG,31/10/2017,C&M-PMS Prem Rates,PRC DELEGATED CO-COMMISSIONING,NHS BARNSLEY CCG GP PRACTICE,19131980,"1,851.00 "
Department of Health,NHS Barnsley CCG,31/10/2017,C&M-PMS QOF Aspiration,PRC DELEGATED CO-COMMISSIONING,NHS BARNSLEY CCG GP PRACTICE,19131980,"14,324.80 "
Department of Health,NHS Barnsley CCG,31/10/2017,C&M-PMS Cost of Drugs -Dispensing,LOCAL ENHANCED SERVICES,NHS BARNSLEY CCG GP PRACTICE,19410954,"(74,086.47)"
Department of Health,NHS Barnsley CCG,31/10/2017,C&M-PMS Prsc Chrgs Cll&Rmttd by GPs,PRC DELEGATED CO-COMMISSIONING,NHS BARNSLEY CCG GP PRACTICE,19410954,"(4,601.00)"
Department of Health,NHS Barnsley CCG,31/10/2017,C&M-PMS Cost of Drugs -Dispensing,LOCAL ENHANCED SERVICES,NHS BARNSLEY CCG GP PRACTICE,19410955,"138,409.81 "
Department of Health,NHS Barnsley CCG,31/10/2017,C&M-PMS Prof fees Dispensing,PRC DELEGATED CO-COMMISSIONING,NHS BARNSLEY CCG GP PRACTICE,19410955,"23,998.44 "
Department of Health,NHS Barnsley CCG,31/10/2017,C&M-PMS Prsc Chrgs Cll&Rmttd by GPs,LOCAL ENHANCED SERVICES,NHS BARNSLEY CCG GP PRACTICE,19410955,"4,601.00 "
Department of Health,NHS Barnsley CCG,31/10/2017,C&M-GMS DES Minor Surgery,PRC DELEGATED CO-COMMISSIONING,NHS BARNSLEY CCG GP PRACTICE,19393390,85.24 
Department of Health,NHS Barnsley CCG,31/10/2017,C&M-GMS Global Sum,PRC DELEGATED CO-COMMISSIONING,NHS BARNSLEY CCG GP PRACTICE,19393390,"20,753.39 "
Department of Health,NHS Barnsley CCG,31/10/2017,C&M-GMS MPIG Correction Factor,PRC DELEGATED CO-COMMISSIONING,NHS BARNSLEY CCG GP PRACTICE,19393390,607.19 
Department of Health,NHS Barnsley CCG,31/10/2017,C&M-GMS Prem Healthcentre Rent,PRC DELEGATED CO-COMMISSIONING,NHS BARNSLEY CCG GP PRACTICE,19393390,"2,198.57 "
Department of Health,NHS Barnsley CCG,31/10/2017,C&M-GMS QOF Aspiration,PRC DELEGATED CO-COMMISSIONING,NHS BARNSLEY CCG GP PRACTICE,19393390,"2,409.31 "
Department of Health,NHS Barnsley CCG,31/10/2017,C&M-GMS DES Learn Dsblty Hlth Chk,PRC DELEGATED CO-COMMISSIONING,NHS BARNSLEY CCG GP PRACTICE,19383049,420.00 
Department of Health,NHS Barnsley CCG,31/10/2017,C&M-GMS Global Sum,PRC DELEGATED CO-COMMISSIONING,NHS BARNSLEY CCG GP PRACTICE,19383049,"38,671.29 "
Department of Health,NHS Barnsley CCG,31/10/2017,C&M-GMS Prem Actual Rent,PRC DELEGATED CO-COMMISSIONING,NHS BARNSLEY CCG GP PRACTICE,19383049,"9,212.50 "
Department of Health,NHS Barnsley CCG,31/10/2017,C&M-GMS Prem Notional Rent,PRC DELEGATED CO-COMMISSIONING,NHS BARNSLEY CCG GP PRACTICE,19383049,"7,231.18 "
Department of Health,NHS Barnsley CCG,31/10/2017,C&M-GMS Prem Rates,PRC DELEGATED CO-COMMISSIONING,NHS BARNSLEY CCG GP PRACTICE,19383049,"1,072.00 "
Department of Health,NHS Barnsley CCG,31/10/2017,C&M-GMS QOF Aspiration,PRC DELEGATED CO-COMMISSIONING,NHS BARNSLEY CCG GP PRACTICE,19383049,"4,292.81 "
Department of Health,NHS Barnsley CCG,31/10/2017,C&M-PMS Contract Value,PRC DELEGATED CO-COMMISSIONING,NHS BARNSLEY CCG GP PRACTICE,19131978,"39,273.48 "
Department of Health,NHS Barnsley CCG,31/10/2017,C&M-PMS Funding Differential Review,PRC DELEGATED CO-COMMISSIONING,NHS BARNSLEY CCG GP PRACTICE,19131978,"2,537.08 "
Department of Health,NHS Barnsley CCG,31/10/2017,C&M-PMS Out of Hours Opt Outs,PRC DELEGATED CO-COMMISSIONING,NHS BARNSLEY CCG GP PRACTICE,19131978,23.18 
Department of Health,NHS Barnsley CCG,31/10/2017,C&M-PMS Prem Healthcentre Rent,PRC DELEGATED CO-COMMISSIONING,NHS BARNSLEY CCG GP PRACTICE,19131978,"2,989.52 "
Department of Health,NHS Barnsley CCG,31/10/2017,C&M-PMS Prem Notional Rent,PRC DELEGATED CO-COMMISSIONING,NHS BARNSLEY CCG GP PRACTICE,19131978,"8,600.00 "
Department of Health,NHS Barnsley CCG,31/10/2017,C&M-PMS Prem Rates,PRC DELEGATED CO-COMMISSIONING,NHS BARNSLEY CCG GP PRACTICE,19131978,"1,030.00 "
Department of Health,NHS Barnsley CCG,31/10/2017,C&M-PMS Prem Water Rates,PRC DELEGATED CO-COMMISSIONING,NHS BARNSLEY CCG GP PRACTICE,19131978,238.75 
Department of Health,NHS Barnsley CCG,31/10/2017,C&M-PMS QOF Aspiration,PRC DELEGATED CO-COMMISSIONING,NHS BARNSLEY CCG GP PRACTICE,19131978,"2,711.68 "
Department of Health,NHS Barnsley CCG,31/10/2017,C&M-GMS GP Statutory Levy,PRC DELEGATED CO-COMMISSIONING,NHS BARNSLEY CCG GP PRACTICE,19383052,(448.86)
Department of Health,NHS Barnsley CCG,31/10/2017,C&M-GMS QOF Aspiration,PRC DELEGATED CO-COMMISSIONING,NHS BARNSLEY CCG GP PRACTICE,19383052,(419.24)
Department of Health,NHS Barnsley CCG,31/10/2017,C&M-GMS Voluntary Levy,PRC DELEGATED CO-COMMISSIONING,NHS BARNSLEY CCG GP PRACTICE,19383052,(78.51)
Department of Health,NHS Barnsley CCG,31/10/2017,ME - GMS TPS Added Years Adj EEs,PRC DELEGATED CO-COMMISSIONING,NHS BARNSLEY CCG GP PRACTICE,19383052,(408.75)
Department of Health,NHS Barnsley CCG,31/10/2017,ME-GMS GP Pension EEs,PRC DELEGATED CO-COMMISSIONING,NHS BARNSLEY CCG GP PRACTICE,19383052,"(12,976.11)"
Department of Health,NHS Barnsley CCG,31/10/2017,ME-GMS GP Pension ERs Adjustments,PRC DELEGATED CO-COMMISSIONING,NHS BARNSLEY CCG GP PRACTICE,19383052,"(12,825.94)"
Department of Health,NHS Barnsley CCG,31/10/2017,C&M-GMS DES Learn Dsblty Hlth Chk,PRC DELEGATED CO-COMMISSIONING,NHS BARNSLEY CCG GP PRACTICE,19383053,840.00 
Department of Health,NHS Barnsley CCG,31/10/2017,C&M-GMS DES Minor Surgery,PRC DELEGATED CO-COMMISSIONING,NHS BARNSLEY CCG GP PRACTICE,19383053,"5,625.84 "
Department of Health,NHS Barnsley CCG,31/10/2017,C&M-GMS Global Sum,PRC DELEGATED CO-COMMISSIONING,NHS BARNSLEY CCG GP PRACTICE,19383053,"103,010.78 "
Department of Health,NHS Barnsley CCG,31/10/2017,C&M-GMS Prem Notional Rent,PRC DELEGATED CO-COMMISSIONING,NHS BARNSLEY CCG GP PRACTICE,19383053,"6,333.33 "
Department of Health,NHS Barnsley CCG,31/10/2017,C&M-GMS QOF Aspiration,PRC DELEGATED CO-COMMISSIONING,NHS BARNSLEY CCG GP PRACTICE,19383053,"11,180.37 "
Department of Health,NHS Barnsley CCG,31/10/2017,C&M-PMS Contract Value,PRC DELEGATED CO-COMMISSIONING,NHS BARNSLEY CCG GP PRACTICE,19131982,"96,270.38 "
Department of Health,NHS Barnsley CCG,31/10/2017,C&M-PMS DES Learn Dsblty Hlth Chk,PRC DELEGATED CO-COMMISSIONING,NHS BARNSLEY CCG GP PRACTICE,19131982,840.00 
Department of Health,NHS Barnsley CCG,31/10/2017,C&M-PMS Prem Notional Rent,PRC DELEGATED CO-COMMISSIONING,NHS BARNSLEY CCG GP PRACTICE,19131982,"13,500.00 "
Department of Health,NHS Barnsley CCG,31/10/2017,C&M-PMS Prem Rates,PRC DELEGATED CO-COMMISSIONING,NHS BARNSLEY CCG GP PRACTICE,19131982,"2,353.07 "
Department of Health,NHS Barnsley CCG,31/10/2017,C&M-PMS Prem Water Rates,PRC DELEGATED CO-COMMISSIONING,NHS BARNSLEY CCG GP PRACTICE,19131982,272.63 
Department of Health,NHS Barnsley CCG,31/10/2017,C&M-PMS QOF Aspiration,PRC DELEGATED CO-COMMISSIONING,NHS BARNSLEY CCG GP PRACTICE,19131982,"9,956.81 "
Department of Health,NHS Barnsley CCG,31/10/2017,ME - PMS GP Prior Year ERs,PRC DELEGATED CO-COMMISSIONING,NHS BARNSLEY CCG GP PRACTICE,19131982,"6,511.34 "
Department of Health,NHS Barnsley CCG,31/10/2017,ME-PMS GP Pension EEs Adjs - PMS,PRC DELEGATED CO-COMMISSIONING,NHS BARNSLEY CCG GP PRACTICE,19131982,"1,822.50 "
Department of Health,NHS Barnsley CCG,31/10/2017,ME-PMS GP Pension ERs Adjs - PMS,PRC DELEGATED CO-COMMISSIONING,NHS BARNSLEY CCG GP PRACTICE,19131982,"1,930.50 "
Department of Health,NHS Barnsley CCG,31/10/2017,ME-PMS GP Prior Year EEs,PRC DELEGATED CO-COMMISSIONING,NHS BARNSLEY CCG GP PRACTICE,19131982,"6,033.74 "
Department of Health,NHS Barnsley CCG,31/10/2017,C&M-GMS DES Learn Dsblty Hlth Chk,PRC DELEGATED CO-COMMISSIONING,NHS BARNSLEY CCG GP PRACTICE,19383051,140.00 
Department of Health,NHS Barnsley CCG,31/10/2017,C&M-GMS DES Minor Surgery,PRC DELEGATED CO-COMMISSIONING,NHS BARNSLEY CCG GP PRACTICE,19383051,"3,239.12 "
Department of Health,NHS Barnsley CCG,31/10/2017,C&M-GMS Global Sum,PRC DELEGATED CO-COMMISSIONING,NHS BARNSLEY CCG GP PRACTICE,19383051,"90,088.59 "
Department of Health,NHS Barnsley CCG,31/10/2017,C&M-GMS Prem Healthcentre Rent,PRC DELEGATED CO-COMMISSIONING,NHS BARNSLEY CCG GP PRACTICE,19383051,"33,280.78 "
Department of Health,NHS Barnsley CCG,31/10/2017,C&M-GMS QOF Aspiration,PRC DELEGATED CO-COMMISSIONING,NHS BARNSLEY CCG GP PRACTICE,19383051,"9,868.55 "
Department of Health,NHS Barnsley CCG,31/10/2017,C&M-GMS DES Minor Surgery,PRC DELEGATED CO-COMMISSIONING,NHS BARNSLEY CCG GP PRACTICE,19407029,"1,960.52 "
Department of Health,NHS Barnsley CCG,31/10/2017,C&M-GMS DES TPP QRISK,PRC DELEGATED CO-COMMISSIONING,NHS BARNSLEY CCG GP PRACTICE,19407029,455.00 
Department of Health,NHS Barnsley CCG,31/10/2017,C&M-GMS Global Sum,PRC DELEGATED CO-COMMISSIONING,NHS BARNSLEY CCG GP PRACTICE,19407029,"77,112.68 "
Department of Health,NHS Barnsley CCG,31/10/2017,C&M-GMS Prem Actual Rent,PRC DELEGATED CO-COMMISSIONING,NHS BARNSLEY CCG GP PRACTICE,19407029,"41,186.25 "
Department of Health,NHS Barnsley CCG,31/10/2017,C&M-GMS Prem Rates,PRC DELEGATED CO-COMMISSIONING,NHS BARNSLEY CCG GP PRACTICE,19407029,"2,927.00 "
Department of Health,NHS Barnsley CCG,31/10/2017,C&M-GMS QOF Aspiration,PRC DELEGATED CO-COMMISSIONING,NHS BARNSLEY CCG GP PRACTICE,19407029,"10,562.04 "
Department of Health,NHS Barnsley CCG,31/10/2017,C&M-PMS Contract Value,PRC DELEGATED CO-COMMISSIONING,NHS BARNSLEY CCG GP PRACTICE,19131983,"(2,000.15)"
Department of Health,NHS Barnsley CCG,31/10/2017,C&M-PMS GP Statutory Levy,PRC DELEGATED CO-COMMISSIONING,NHS BARNSLEY CCG GP PRACTICE,19131983,(402.23)
Department of Health,NHS Barnsley CCG,31/10/2017,C&M-PMS Out of Hours Opt Outs,PRC DELEGATED CO-COMMISSIONING,NHS BARNSLEY CCG GP PRACTICE,19131983,"(6,734.21)"
Department of Health,NHS Barnsley CCG,31/10/2017,C&M-PMS Voluntary Levy,PRC DELEGATED CO-COMMISSIONING,NHS BARNSLEY CCG GP PRACTICE,19131983,(70.36)
Department of Health,NHS Barnsley CCG,31/10/2017,ME - PMS TPS Added Years Adj EEs,PRC DELEGATED CO-COMMISSIONING,NHS BARNSLEY CCG GP PRACTICE,19131983,(266.67)
Department of Health,NHS Barnsley CCG,31/10/2017,ME-PMS GP Pension EEs-PMS,PRC DELEGATED CO-COMMISSIONING,NHS BARNSLEY CCG GP PRACTICE,19131983,"(10,656.97)"
Department of Health,NHS Barnsley CCG,31/10/2017,ME-PMS GP Pension ERs Adjs - PMS,PRC DELEGATED CO-COMMISSIONING,NHS BARNSLEY CCG GP PRACTICE,19131983,"(11,848.69)"
Department of Health,NHS Barnsley CCG,31/10/2017,C&M-PMS Contract Value,PRC DELEGATED CO-COMMISSIONING,NHS BARNSLEY CCG GP PRACTICE,19161920,"137,831.50 "
Department of Health,NHS Barnsley CCG,31/10/2017,C&M-PMS DES TPP QRISK,PRC DELEGATED CO-COMMISSIONING,NHS BARNSLEY CCG GP PRACTICE,19161920,"1,332.50 "
Department of Health,NHS Barnsley CCG,31/10/2017,C&M-PMS Funding Differential Review,PRC DELEGATED CO-COMMISSIONING,NHS BARNSLEY CCG GP PRACTICE,19161920,203.75 
Department of Health,NHS Barnsley CCG,31/10/2017,C&M-PMS Out of Hours Opt Outs,PRC DELEGATED CO-COMMISSIONING,NHS BARNSLEY CCG GP PRACTICE,19161920,98.99 
Department of Health,NHS Barnsley CCG,31/10/2017,C&M-PMS PCO Other,PRC DELEGATED CO-COMMISSIONING,NHS BARNSLEY CCG GP PRACTICE,19161920,523.70 
Department of Health,NHS Barnsley CCG,31/10/2017,C&M-PMS Prem Notional Rent,PRC DELEGATED CO-COMMISSIONING,NHS BARNSLEY CCG GP PRACTICE,19161920,"11,166.67 "
Department of Health,NHS Barnsley CCG,31/10/2017,C&M-PMS QOF Aspiration,PRC DELEGATED CO-COMMISSIONING,NHS BARNSLEY CCG GP PRACTICE,19161920,"10,469.27 "
Department of Health,NHS Barnsley CCG,31/10/2017,C&M-PMS Contract Value,PRC DELEGATED CO-COMMISSIONING,NHS BARNSLEY CCG GP PRACTICE,19161921,"94,125.01 "
Department of Health,NHS Barnsley CCG,31/10/2017,C&M-PMS DES Learn Dsblty Hlth Chk,PRC DELEGATED CO-COMMISSIONING,NHS BARNSLEY CCG GP PRACTICE,19161921,420.00 
Department of Health,NHS Barnsley CCG,31/10/2017,C&M-PMS DES TPP QRISK,PRC DELEGATED CO-COMMISSIONING,NHS BARNSLEY CCG GP PRACTICE,19161921,806.00 
Department of Health,NHS Barnsley CCG,31/10/2017,C&M-PMS PCO Locum Adop/Pat/Mat,PRC DELEGATED CO-COMMISSIONING,NHS BARNSLEY CCG GP PRACTICE,19161921,"5,202.54 "
Department of Health,NHS Barnsley CCG,31/10/2017,C&M-PMS PCO Other,PRC DELEGATED CO-COMMISSIONING,NHS BARNSLEY CCG GP PRACTICE,19161921,523.70 
Department of Health,NHS Barnsley CCG,31/10/2017,C&M-PMS Prem Actual Rent,PRC DELEGATED CO-COMMISSIONING,NHS BARNSLEY CCG GP PRACTICE,19161921,"12,708.33 "
Department of Health,NHS Barnsley CCG,31/10/2017,C&M-PMS Prem Rates,PRC DELEGATED CO-COMMISSIONING,NHS BARNSLEY CCG GP PRACTICE,19161921,"2,491.00 "
Department of Health,NHS Barnsley CCG,31/10/2017,C&M-PMS QOF Aspiration,PRC DELEGATED CO-COMMISSIONING,NHS BARNSLEY CCG GP PRACTICE,19161921,"10,713.50 "
Department of Health,NHS Barnsley CCG,31/10/2017,C&M-PMS Contract Value,PRC DELEGATED CO-COMMISSIONING,NHS BARNSLEY CCG GP PRACTICE,19131985,"83,863.69 "
Department of Health,NHS Barnsley CCG,31/10/2017,C&M-PMS Prem Actual Rent,PRC DELEGATED CO-COMMISSIONING,NHS BARNSLEY CCG GP PRACTICE,19131985,"8,566.67 "
Department of Health,NHS Barnsley CCG,31/10/2017,C&M-PMS QOF Aspiration,PRC DELEGATED CO-COMMISSIONING,NHS BARNSLEY CCG GP PRACTICE,19131985,"7,978.34 "
Department of Health,NHS Barnsley CCG,31/10/2017,C&M-GMS DES Learn Dsblty Hlth Chk,PRC DELEGATED CO-COMMISSIONING,NHS BARNSLEY CCG GP PRACTICE,19383056,420.00 
Department of Health,NHS Barnsley CCG,31/10/2017,C&M-GMS DES UNPLANNED ADMISSIONS,PRC DELEGATED CO-COMMISSIONING,NHS BARNSLEY CCG GP PRACTICE,19383056,"5,116.65 "
Department of Health,NHS Barnsley CCG,31/10/2017,C&M-GMS Global Sum,PRC DELEGATED CO-COMMISSIONING,NHS BARNSLEY CCG GP PRACTICE,19383056,"55,266.53 "
Department of Health,NHS Barnsley CCG,31/10/2017,C&M-GMS Prem Healthcentre Rent,PRC DELEGATED CO-COMMISSIONING,NHS BARNSLEY CCG GP PRACTICE,19383056,"21,594.09 "
Department of Health,NHS Barnsley CCG,31/10/2017,C&M-GMS QOF Aspiration,PRC DELEGATED CO-COMMISSIONING,NHS BARNSLEY CCG GP PRACTICE,19383056,"6,288.65 "
Department of Health,NHS Barnsley CCG,31/10/2017,C&M-PMS Contract Value,PRC DELEGATED CO-COMMISSIONING,NHS BARNSLEY CCG GP PRACTICE,19131987,"99,023.49 "
Department of Health,NHS Barnsley CCG,31/10/2017,C&M-PMS DES Learn Dsblty Hlth Chk,PRC DELEGATED CO-COMMISSIONING,NHS BARNSLEY CCG GP PRACTICE,19131987,280.00 
Department of Health,NHS Barnsley CCG,31/10/2017,C&M-PMS Out of Hours Opt Outs,PRC DELEGATED CO-COMMISSIONING,NHS BARNSLEY CCG GP PRACTICE,19131987,10.86 
Department of Health,NHS Barnsley CCG,31/10/2017,C&M-PMS PCO Locum Adop/Pat/Mat,PRC DELEGATED CO-COMMISSIONING,NHS BARNSLEY CCG GP PRACTICE,19131987,"15,606.96 "
Department of Health,NHS Barnsley CCG,31/10/2017,C&M-PMS Prem Actual Rent,PRC DELEGATED CO-COMMISSIONING,NHS BARNSLEY CCG GP PRACTICE,19131987,"53,481.25 "
Department of Health,NHS Barnsley CCG,31/10/2017,C&M-PMS Prem Rates,PRC DELEGATED CO-COMMISSIONING,NHS BARNSLEY CCG GP PRACTICE,19131987,"2,716.00 "
Department of Health,NHS Barnsley CCG,31/10/2017,C&M-PMS QOF Aspiration,PRC DELEGATED CO-COMMISSIONING,NHS BARNSLEY CCG GP PRACTICE,19131987,"12,214.31 "
Department of Health,NHS Barnsley CCG,31/10/2017,C&M-GMS DES Learn Dsblty Hlth Chk,PRC DELEGATED CO-COMMISSIONING,NHS BARNSLEY CCG GP PRACTICE,19383060,420.00 
Department of Health,NHS Barnsley CCG,31/10/2017,C&M-GMS DES Minor Surgery,PRC DELEGATED CO-COMMISSIONING,NHS BARNSLEY CCG GP PRACTICE,19383060,"5,199.64 "
Department of Health,NHS Barnsley CCG,31/10/2017,C&M-GMS Global Sum,PRC DELEGATED CO-COMMISSIONING,NHS BARNSLEY CCG GP PRACTICE,19383060,"45,925.63 "
Department of Health,NHS Barnsley CCG,31/10/2017,C&M-GMS Prem Notional Rent,PRC DELEGATED CO-COMMISSIONING,NHS BARNSLEY CCG GP PRACTICE,19383060,"2,541.67 "
Department of Health,NHS Barnsley CCG,31/10/2017,C&M-GMS Prem Rates,PRC DELEGATED CO-COMMISSIONING,NHS BARNSLEY CCG GP PRACTICE,19383060,454.00 
Department of Health,NHS Barnsley CCG,31/10/2017,C&M-GMS QOF Aspiration,PRC DELEGATED CO-COMMISSIONING,NHS BARNSLEY CCG GP PRACTICE,19383060,"4,060.06 "
Department of Health,NHS Barnsley CCG,31/10/2017,C&M-GMS DES Learn Dsblty Hlth Chk,PRC DELEGATED CO-COMMISSIONING,NHS BARNSLEY CCG GP PRACTICE,19383062,140.00 
Department of Health,NHS Barnsley CCG,31/10/2017,C&M-GMS DES Minor Surgery,PRC DELEGATED CO-COMMISSIONING,NHS BARNSLEY CCG GP PRACTICE,19383062,"4,091.52 "
Department of Health,NHS Barnsley CCG,31/10/2017,C&M-GMS Global Sum,PRC DELEGATED CO-COMMISSIONING,NHS BARNSLEY CCG GP PRACTICE,19383062,"83,413.14 "
Department of Health,NHS Barnsley CCG,31/10/2017,C&M-GMS Prem Healthcentre Rent,PRC DELEGATED CO-COMMISSIONING,NHS BARNSLEY CCG GP PRACTICE,19383062,"22,577.78 "
Department of Health,NHS Barnsley CCG,31/10/2017,C&M-GMS Prem Notional Rent,PRC DELEGATED CO-COMMISSIONING,NHS BARNSLEY CCG GP PRACTICE,19383062,"3,375.00 "
Department of Health,NHS Barnsley CCG,31/10/2017,C&M-GMS Prem Water Rates,PRC DELEGATED CO-COMMISSIONING,NHS BARNSLEY CCG GP PRACTICE,19383062,54.80 
Department of Health,NHS Barnsley CCG,31/10/2017,C&M-GMS QOF Aspiration,PRC DELEGATED CO-COMMISSIONING,NHS BARNSLEY CCG GP PRACTICE,19383062,"9,650.40 "
Department of Health,NHS Barnsley CCG,31/10/2017,C&M-PMS Contract Value,PRC DELEGATED CO-COMMISSIONING,NHS BARNSLEY CCG GP PRACTICE,19131989,"48,494.16 "
Department of Health,NHS Barnsley CCG,31/10/2017,C&M-PMS Funding Differential Review,PRC DELEGATED CO-COMMISSIONING,NHS BARNSLEY CCG GP PRACTICE,19131989,"1,500.83 "
Department of Health,NHS Barnsley CCG,31/10/2017,C&M-PMS Prem Healthcentre Rent,PRC DELEGATED CO-COMMISSIONING,NHS BARNSLEY CCG GP PRACTICE,19131989,"6,045.20 "
Department of Health,NHS Barnsley CCG,31/10/2017,C&M-PMS Prem Notional Rent,PRC DELEGATED CO-COMMISSIONING,NHS BARNSLEY CCG GP PRACTICE,19131989,"3,583.33 "
Department of Health,NHS Barnsley CCG,31/10/2017,C&M-PMS QOF Aspiration,PRC DELEGATED CO-COMMISSIONING,NHS BARNSLEY CCG GP PRACTICE,19131989,"4,640.02 "
Department of Health,NHS Barnsley CCG,31/10/2017,C&M-PMS Baseline Adjustment,PRC DELEGATED CO-COMMISSIONING,NHS BARNSLEY CCG GP PRACTICE,19140177,693.00 
Department of Health,NHS Barnsley CCG,31/10/2017,C&M-PMS Contract Value,PRC DELEGATED CO-COMMISSIONING,NHS BARNSLEY CCG GP PRACTICE,19140177,"26,464.98 "
Department of Health,NHS Barnsley CCG,31/10/2017,C&M-PMS DES Learn Dsblty Hlth Chk,PRC DELEGATED CO-COMMISSIONING,NHS BARNSLEY CCG GP PRACTICE,19140177,140.00 
Department of Health,NHS Barnsley CCG,31/10/2017,C&M-PMS Prem Notional Rent,PRC DELEGATED CO-COMMISSIONING,NHS BARNSLEY CCG GP PRACTICE,19140177,"4,208.33 "
Department of Health,NHS Barnsley CCG,31/10/2017,C&M-PMS Prem Rates,PRC DELEGATED CO-COMMISSIONING,NHS BARNSLEY CCG GP PRACTICE,19140177,875.00 
Department of Health,NHS Barnsley CCG,31/10/2017,C&M-PMS QOF Aspiration,PRC DELEGATED CO-COMMISSIONING,NHS BARNSLEY CCG GP PRACTICE,19140177,"2,071.11 "
Department of Health,NHS Barnsley CCG,31/10/2017,C&M-PMS Cost of Drugs -Dispensing,LOCAL ENHANCED SERVICES,NHS BARNSLEY CCG GP PRACTICE,19410557,"31,639.75 "
Department of Health,NHS Barnsley CCG,31/10/2017,C&M-PMS Prof fees Dispensing,PRC DELEGATED CO-COMMISSIONING,NHS BARNSLEY CCG GP PRACTICE,19410557,"4,833.38 "
Department of Health,NHS Barnsley CCG,31/10/2017,C&M-PMS Prsc Chrgs Cll&Rmttd by GPs,LOCAL ENHANCED SERVICES,NHS BARNSLEY CCG GP PRACTICE,19410557,"1,591.00 "
Department of Health,NHS Barnsley CCG,31/10/2017,C&M-APMS Contract Value,PRC DELEGATED CO-COMMISSIONING,NHS BARNSLEY CCG GP PRACTICE,19131993,"18,856.62 "
Department of Health,NHS Barnsley CCG,31/10/2017,C&M-APMS OOH Opt Outs,PRC DELEGATED CO-COMMISSIONING,NHS BARNSLEY CCG GP PRACTICE,19131993,2.63 
Department of Health,NHS Barnsley CCG,31/10/2017,C&M-APMS Prem Healthcentre Rent,PRC DELEGATED CO-COMMISSIONING,NHS BARNSLEY CCG GP PRACTICE,19131993,"4,802.71 "
Department of Health,NHS Barnsley CCG,31/10/2017,C&M-PMS DES Learn Dsblty Hlth Chk,PRC DELEGATED CO-COMMISSIONING,NHS BARNSLEY CCG GP PRACTICE,19131993,140.00 
Department of Health,NHS Barnsley CCG,31/10/2017,C&M-PMS Prem Healthcentre Rent,PRC DELEGATED CO-COMMISSIONING,NHS BARNSLEY CCG GP PRACTICE,19131993,"4,756.91 "
Department of Health,NHS Barnsley CCG,31/10/2017,C&M-PMS QOF Aspiration,PRC DELEGATED CO-COMMISSIONING,NHS BARNSLEY CCG GP PRACTICE,19131993,"1,598.13 "
Department of Health,NHS Barnsley CCG,31/10/2017,C&M-GMS DES Minor Surgery,PRC DELEGATED CO-COMMISSIONING,NHS BARNSLEY CCG GP PRACTICE,19393392,"2,131.00 "
Department of Health,NHS Barnsley CCG,31/10/2017,C&M-GMS Global Sum,PRC DELEGATED CO-COMMISSIONING,NHS BARNSLEY CCG GP PRACTICE,19393392,"59,582.08 "
Department of Health,NHS Barnsley CCG,31/10/2017,C&M-GMS Prem Actual Rent,PRC DELEGATED CO-COMMISSIONING,NHS BARNSLEY CCG GP PRACTICE,19393392,"8,873.23 "
Department of Health,NHS Barnsley CCG,31/10/2017,C&M-GMS Prem Rates,PRC DELEGATED CO-COMMISSIONING,NHS BARNSLEY CCG GP PRACTICE,19393392,"1,081.00 "
Department of Health,NHS Barnsley CCG,31/10/2017,C&M-GMS QOF Aspiration,PRC DELEGATED CO-COMMISSIONING,NHS BARNSLEY CCG GP PRACTICE,19393392,"7,778.41 "
Department of Health,NHS Barnsley CCG,31/10/2017,C&M-PMS Contract Value,PRC DELEGATED CO-COMMISSIONING,NHS BARNSLEY CCG GP PRACTICE,19131991,"71,213.02 "
Department of Health,NHS Barnsley CCG,31/10/2017,C&M-PMS Out of Hours Opt Outs,PRC DELEGATED CO-COMMISSIONING,NHS BARNSLEY CCG GP PRACTICE,19131991,32.67 
Department of Health,NHS Barnsley CCG,31/10/2017,C&M-PMS Prem Actual Rent,PRC DELEGATED CO-COMMISSIONING,NHS BARNSLEY CCG GP PRACTICE,19131991,336.75 
Department of Health,NHS Barnsley CCG,31/10/2017,C&M-PMS Prem Healthcentre Rent,PRC DELEGATED CO-COMMISSIONING,NHS BARNSLEY CCG GP PRACTICE,19131991,"17,485.37 "
Department of Health,NHS Barnsley CCG,31/10/2017,C&M-PMS QOF Aspiration,PRC DELEGATED CO-COMMISSIONING,NHS BARNSLEY CCG GP PRACTICE,19131991,"6,823.95 "
Department of Health,NHS Barnsley CCG,31/10/2017,C&M-PMS Contract Value,PRC DELEGATED CO-COMMISSIONING,NHS BARNSLEY CCG GP PRACTICE,19140173,"40,360.54 "
Department of Health,NHS Barnsley CCG,31/10/2017,C&M-PMS DES Learn Dsblty Hlth Chk,PRC DELEGATED CO-COMMISSIONING,NHS BARNSLEY CCG GP PRACTICE,19140173,420.00 
Department of Health,NHS Barnsley CCG,31/10/2017,C&M-PMS Prem Healthcentre Rent,PRC DELEGATED CO-COMMISSIONING,NHS BARNSLEY CCG GP PRACTICE,19140173,"1,189.84 "
Department of Health,NHS Barnsley CCG,31/10/2017,C&M-PMS Prem Notional Rent,PRC DELEGATED CO-COMMISSIONING,NHS BARNSLEY CCG GP PRACTICE,19140173,"28,675.00 "
Department of Health,NHS Barnsley CCG,31/10/2017,C&M-PMS Prem Rates,PRC DELEGATED CO-COMMISSIONING,NHS BARNSLEY CCG GP PRACTICE,19140173,"1,350.00 "
Department of Health,NHS Barnsley CCG,31/10/2017,C&M-PMS QOF Aspiration,PRC DELEGATED CO-COMMISSIONING,NHS BARNSLEY CCG GP PRACTICE,19140173,"4,470.13 "
Department of Health,NHS Barnsley CCG,31/10/2017,ME-PMS GP Prior Year EEs,PRC DELEGATED CO-COMMISSIONING,NHS BARNSLEY CCG GP PRACTICE,19140173,14.01 
Department of Health,NHS Barnsley CCG,31/10/2017,Non-PFI Oprtng Lease-Bldgs-Lease Rent,ADMINISTRATION & BUSINESS SUPPORT,NHS PROPERTY SERVICES LTD,19189681,"41,594.36 "
Department of Health,NHS Barnsley CCG,31/10/2017,Clinical&Medical-Commercial Sector,ACUTE COMMISSIONING,ONEHEALTH GROUP,19230016,"(52,623.00)"
Department of Health,NHS Barnsley CCG,31/10/2017,Clinical&Medical-Commercial Sector,ACUTE COMMISSIONING,ONEHEALTH GROUP,19230021,"189,723.25 "
Department of Health,NHS Barnsley CCG,31/10/2017,Clinical&Medical-Commercial Sector,ACUTE COMMISSIONING,PAIN MANAGEMENT SOLUTIONS LTD,19273212,"28,943.78 "
Department of Health,NHS Barnsley CCG,31/10/2017,Hcare Srv Rec Fdtn Trust-CQUIN,MENTAL HEALTH CONTRACTS,ROTHERHAM DONCASTER & SOUTH HUMBER MENTAL HEALTH NHS FOUNDATION TRUST,19174992,"34,468.58 "
Department of Health,NHS Barnsley CCG,30/09/2017,Hcare Srv Rec Fdtn Trust-Contract Cost per Case,MENTAL HEALTH SERVICES - NOT CONTRACTED ACTIVITY,ROTHERHAM DONCASTER & SOUTH HUMBER MENTAL HEALTH NHS FOUNDATION TRUST,18950773,"30,026.47 "
Department of Health,NHS Barnsley CCG,30/09/2017,Hcare Srv Rec Fdtn Trust-Contract Baseline,COMMUNITY SERVICES,ROTHERHAM NHS FOUNDATION TRUST,19004625,"41,807.00 "
Department of Health,NHS Barnsley CCG,31/10/2017,Hcare Srv Rec Fdtn Trust-CQUIN,ACUTE COMMISSIONING,SHEFFIELD CHILDRENS NHS FOUNDATION TRUST,19174975,"1,615.00 "
Department of Health,NHS Barnsley CCG,31/10/2017,Hcare Srv Rec Fdtn Trust-Contract Baseline,ACUTE COMMISSIONING,SHEFFIELD CHILDRENS NHS FOUNDATION TRUST,19174975,"134,793.00 "
Department of Health,NHS Barnsley CCG,31/10/2017,Cont Care- Prior Year Payments,CHC ADULT FULLY FUNDED,SHEFFIELD CITY COUNCIL,19212424,"110,058.38 "
Department of Health,NHS Barnsley CCG,31/10/2017,Hcare Srv Rec Fdtn Trust-Contract Baseline,ACUTE COMMISSIONING,SHEFFIELD TEACHING HOSPITALS NHS FOUNDATION TRUST,19148598,"1,852,829.00 "
Department of Health,NHS Barnsley CCG,31/10/2017,Hcare Srv Rec Fdtn Trust-Contract Baseline,ACUTE COMMISSIONING,SHEFFIELD TEACHING HOSPITALS NHS FOUNDATION TRUST,19148602,"174,257.00 "
Department of Health,NHS Barnsley CCG,30/09/2017,Hlthcre-Foundation Trsts,COMMUNITY SERVICES,SOUTH WEST YORKSHIRE PARTNERSHIP NHS FOUNDATION TRUST,19004337,"586,546.00 "
Department of Health,NHS Barnsley CCG,30/09/2017,Clinical&Medical-Voluntary Sector,COMMUNITY SERVICES,SOUTH YORKSHIRE HOUSING ASSOCIATION LTD,19004304,"25,096.73 "
Department of Health,NHS Barnsley CCG,31/10/2017,Clinical&Medical-Commercial Sector,NCAS/OATS,SPAMEDICA LTD,19372587,"33,661.07 "
Department of Health,NHS Barnsley CCG,31/10/2017,Hcare Srv Rec NHS Trust-Contract Baseline,PATIENT TRANSPORT,YORKSHIRE AMBULANCE SERVICE NHS TRUST,19055678,"129,241.20 "
Department of Health,NHS Barnsley CCG,31/10/2017,Hcare Srv Rec NHS Trust-Contract Baseline,AMBULANCE SERVICES,YORKSHIRE AMBULANCE SERVICE NHS TRUST,19055684,"627,034.00 "
Department of Health,NHS Barnsley CCG,31/10/2017,Hcare Srv Rec NHS Trust-Contract Baseline,NHS 111,YORKSHIRE AMBULANCE SERVICE NHS TRUST,19055691,"49,017.33 "
Department of Health,NHS Barnsley CCG,30/09/2017,Hcare Srv Rec NHS Trust-Contract Baseline,AMBULANCE SERVICES,YORKSHIRE AMBULANCE SERVICE NHS TRUST,18910619,"58,500.00 "
Department of Health,NHS Barnsley CCG,30/09/2017,Hcare Srv Rec NHS Trust-Contract Baseline,AMBULANCE SERVICES,YORKSHIRE AMBULANCE SERVICE NHS TRUST,18910669,"(52,000.00)"
,,,,,,,"22,112,724.51 "
